[Event "*** Titled Tuesday Blitz"]
[Site "Chess.com"]
[Date "2019.10.01"]
[Round "9"]
[White "brendan174"]
[Black "ChessBitl"]
[Result "1-0"]
[WhiteElo "2129"]
[BlackElo "2277"]
[TimeControl "180+2"]
[EndTime "15:14:39 PDT"]
[Termination "brendan174 won by resignation"]

1. d4 {[%clk 0:03:01.9]} 1... Nf6 {[%clk 0:02:56.7]} 2. Nc3 {[%clk 0:03:03.1]}
2... g6 {[%clk 0:02:58.1]} 3. e4 {[%clk 0:03:03.8]} 3... d6 {[%clk 0:02:58.6]}
4. Be3 {[%clk 0:03:04.7]} 4... Bg7 {[%clk 0:03:00.2]} 5. f3 {[%clk 0:03:05.1]}
5... O-O {[%clk 0:03:01]} 6. Qd2 {[%clk 0:03:06.4]} 6... e5 {[%clk 0:03:02.1]}
7. O-O-O {[%clk 0:03:02.9]} 7... exd4 {[%clk 0:03:01.1]} 8. Bxd4 {[%clk
0:03:04.7]} 8... Nc6 {[%clk 0:03:02.6]} 9. Be3 {[%clk 0:03:02.5]} 9... Be6
{[%clk 0:03:03]} 10. h4 {[%clk 0:02:55.7]} 10... h5 {[%clk 0:03:03.5]} 11. Kb1
{[%clk 0:02:52]} 11... Ne7 {[%clk 0:02:59.8]} 12. Nge2 {[%clk 0:02:48.5]} 12...
d5 {[%clk 0:03:00.9]} 13. exd5 {[%clk 0:02:36.6]} 13... Nexd5 {[%clk 0:03:01.4]}
14. Nxd5 {[%clk 0:02:32]} 14... Nxd5 {[%clk 0:03:01.7]} 15. Bh6 {[%clk
0:02:16.1]} 15... Qf6 {[%clk 0:02:56]} 16. Bxg7 {[%clk 0:02:09.7]} 16... Kxg7
{[%clk 0:02:57.1]} 17. Nd4 {[%clk 0:01:56.4]} 17... Rad8 {[%clk 0:02:52.1]} 18.
Nxe6+ {[%clk 0:01:53.8]} 18... Qxe6 {[%clk 0:02:52.1]} 19. Bd3 {[%clk
0:01:51.5]} 19... Qf6 {[%clk 0:02:48.1]} 20. Qf2 {[%clk 0:01:36.5]} 20... Nf4
{[%clk 0:02:34.5]} 21. Bc4 {[%clk 0:01:30.9]} 21... c6 {[%clk 0:02:31]} 22. g3
{[%clk 0:01:26.6]} 22... Ne6 {[%clk 0:02:26.3]} 23. Bxe6 {[%clk 0:01:23.4]}
23... Qxe6 {[%clk 0:02:26]} 24. Rhe1 {[%clk 0:01:21.2]} 24... Rxd1+ {[%clk
0:02:25.5]} 25. Rxd1 {[%clk 0:01:23.1]} 25... b6 {[%clk 0:02:24.6]} 26. Qd4+
{[%clk 0:01:23.9]} 26... Kh7 {[%clk 0:02:21.7]} 27. g4 {[%clk 0:01:21.1]} 27...
hxg4 {[%clk 0:02:18.9]} 28. fxg4 {[%clk 0:01:23]} 28... Re8 {[%clk 0:02:18.3]}
29. h5 {[%clk 0:01:22.9]} 29... Qe4 {[%clk 0:02:12.7]} 30. Qf6 {[%clk
0:01:21.3]} 30... Qe6 {[%clk 0:02:07.6]} 31. Qh4 {[%clk 0:01:16.5]} 31... Kg8
{[%clk 0:02:00.3]} 32. a3 {[%clk 0:01:06]} 32... Qe7 {[%clk 0:01:53]} 33. g5
{[%clk 0:00:49.9]} 33... Qe4 {[%clk 0:01:50.9]} 34. Qh3 {[%clk 0:00:23.2]} 34...
Qe2 {[%clk 0:01:43.2]} 35. Rf1 {[%clk 0:00:24.2]} 35... Qxh5 {[%clk 0:01:39.7]}
36. Qb3 {[%clk 0:00:22]} 36... Rf8 {[%clk 0:01:36.7]} 37. Qc4 {[%clk 0:00:22.2]}
37... Qxg5 {[%clk 0:01:31.5]} 38. Qxc6 {[%clk 0:00:23.5]} 38... Qc5 {[%clk
0:01:16.6]} 39. Qf3 {[%clk 0:00:22.6]} 39... Qc4 {[%clk 0:01:05]} 40. Rh1 {[%clk
0:00:21.9]} 40... Rc8 {[%clk 0:01:03]} 41. Qf6 {[%clk 0:00:20.9]} 41... Qxc2+
{[%clk 0:00:52.6]} 42. Ka1 {[%clk 0:00:22.1]} 42... Qc1+ {[%clk 0:00:43.1]} 43.
Rxc1 {[%clk 0:00:22.8]} 43... Rxc1+ {[%clk 0:00:44.6]} 44. Ka2 {[%clk
0:00:24.5]} 44... Rc8 {[%clk 0:00:42.4]} 45. Qe7 {[%clk 0:00:22.9]} 45... a5
{[%clk 0:00:37.7]} 46. Qb7 {[%clk 0:00:23.1]} 46... Rf8 {[%clk 0:00:35.6]} 47.
Qxb6 {[%clk 0:00:23.8]} 47... Kg7 {[%clk 0:00:37.1]} 48. Qxa5 {[%clk 0:00:23.8]}
48... f5 {[%clk 0:00:38.4]} 49. Qe5+ {[%clk 0:00:24.4]} 49... Kg8 {[%clk
0:00:37.4]} 50. a4 {[%clk 0:00:25.3]} 50... f4 {[%clk 0:00:37.9]} 51. Qd5+
{[%clk 0:00:20.9]} 51... Kg7 {[%clk 0:00:38.5]} 52. Qf3 {[%clk 0:00:22.1]} 52...
g5 {[%clk 0:00:38.7]} 53. a5 {[%clk 0:00:21.1]} 53... Kh6 {[%clk 0:00:36]} 54.
a6 {[%clk 0:00:19.7]} 54... g4 {[%clk 0:00:34.3]} 55. Qxg4 {[%clk 0:00:17.9]}
55... f3 {[%clk 0:00:35.8]} 56. Qh3+ {[%clk 0:00:19.4]} 56... Kg5 {[%clk
0:00:35.3]} 57. Qg3+ {[%clk 0:00:19.3]} 57... Kh5 {[%clk 0:00:35.7]} 58. Qf2
{[%clk 0:00:16.9]} 58... Kg4 {[%clk 0:00:36.8]} 59. a7 {[%clk 0:00:17.3]} 59...
Re8 {[%clk 0:00:35.1]} 60. Ka3 {[%clk 0:00:11.6]} 60... Kf4 {[%clk 0:00:31.2]}
61. b4 {[%clk 0:00:09.1]} 61... Re2 {[%clk 0:00:26.4]} 62. Qh4+ {[%clk
0:00:08.8]} 62... Ke3 {[%clk 0:00:27.3]} 63. a8=Q {[%clk 0:00:09.9]} 63... f2
{[%clk 0:00:14]} 64. Qe8+ {[%clk 0:00:10.1]} 64... Kd2 {[%clk 0:00:15.1]} 65.
Qxe2+ {[%clk 0:00:10.9]} 65... Kxe2 {[%clk 0:00:15.6]} 66. Qe4+ {[%clk
0:00:12.6]} 66... Kd1 {[%clk 0:00:16]} 67. Qf3+ {[%clk 0:00:12.7]} 67... Ke1
{[%clk 0:00:17.2]} 68. Qxf2+ {[%clk 0:00:14.2]} 68... Kxf2 {[%clk 0:00:18.5]}
69. b5 {[%clk 0:00:16.1]} 69... Ke3 {[%clk 0:00:20.1]} 70. b6 {[%clk 0:00:17.8]}
70... Kd4 {[%clk 0:00:21.7]} 71. b7 {[%clk 0:00:19.5]} 71... Kc5 {[%clk
0:00:23.1]} 72. b8=Q {[%clk 0:00:21.4]} 72... Kc6 {[%clk 0:00:24.7]} 73. Kb4
{[%clk 0:00:22]} 73... Kd5 {[%clk 0:00:25]} 74. Qc7 {[%clk 0:00:23.1]} 74... Kd4
{[%clk 0:00:26.1]} 75. Qc6 {[%clk 0:00:24.4]} 75... Ke5 {[%clk 0:00:26.2]} 76.
Qd7 {[%clk 0:00:25.4]} 76... Ke4 {[%clk 0:00:25.2]} 77. Qd6 {[%clk 0:00:26.7]}
77... Ke3 {[%clk 0:00:26]} 78. Kc3 {[%clk 0:00:28.3]} 78... Ke4 {[%clk
0:00:26.9]} 79. Qe6+ {[%clk 0:00:28.5]} 1-0

[Event "*** Titled Tuesday Blitz"]
[Site "Chess.com"]
[Date "2019.10.01"]
[Round "9"]
[White "GMKrikor"]
[Black "Msb2"]
[Result "1-0"]
[WhiteElo "2811"]
[BlackElo "2885"]
[TimeControl "180+2"]
[EndTime "15:14:52 PDT"]
[Termination "GMKrikor won by resignation"]

1. c4 {[%clk 0:03:01.9]} 1... e6 {[%clk 0:02:59.2]} 2. g3 {[%clk 0:02:58.6]}
2... d5 {[%clk 0:02:59.6]} 3. Nf3 {[%clk 0:02:57.8]} 3... dxc4 {[%clk
0:02:59.2]} 4. Qa4+ {[%clk 0:02:58]} 4... Bd7 {[%clk 0:03:00.5]} 5. Qxc4 {[%clk
0:02:58.6]} 5... c5 {[%clk 0:03:02.2]} 6. Ne5 {[%clk 0:02:53.2]} 6... Nc6 {[%clk
0:03:03.1]} 7. Nxd7 {[%clk 0:02:53.7]} 7... Qxd7 {[%clk 0:03:05]} 8. Bg2 {[%clk
0:02:54.6]} 8... Nf6 {[%clk 0:03:04.9]} 9. O-O {[%clk 0:02:55.9]} 9... Be7
{[%clk 0:03:06.1]} 10. b3 {[%clk 0:02:50.8]} 10... Rc8 {[%clk 0:03:01.3]} 11.
Bb2 {[%clk 0:02:28.4]} 11... O-O {[%clk 0:03:00.4]} 12. d3 {[%clk 0:02:26.3]}
12... Nd4 {[%clk 0:02:57.3]} 13. Re1 {[%clk 0:02:24.2]} 13... Rfd8 {[%clk
0:02:41.4]} 14. Nd2 {[%clk 0:02:22.8]} 14... b5 {[%clk 0:02:42.1]} 15. Qc1
{[%clk 0:02:23.4]} 15... a6 {[%clk 0:02:34.3]} 16. a3 {[%clk 0:02:18.6]} 16...
Nd5 {[%clk 0:02:32.1]} 17. e3 {[%clk 0:02:09.4]} 17... Nc6 {[%clk 0:02:31.7]}
18. Ne4 {[%clk 0:02:10.5]} 18... f5 {[%clk 0:01:57.4]} 19. Nd2 {[%clk
0:01:42.2]} 19... Qd6 {[%clk 0:01:41.9]} 20. e4 {[%clk 0:01:13.5]} 20... Nb6
{[%clk 0:01:39]} 21. exf5 {[%clk 0:01:11.3]} 21... exf5 {[%clk 0:01:40.9]} 22.
Nf3 {[%clk 0:00:44.8]} 22... Bf6 {[%clk 0:01:23.9]} 23. Bxf6 {[%clk 0:00:42.3]}
23... Qxf6 {[%clk 0:01:25.8]} 24. Qe3 {[%clk 0:00:15.6]} 24... Nd5 {[%clk
0:01:09]} 25. Qg5 {[%clk 0:00:16.9]} 25... h6 {[%clk 0:01:05.2]} 26. Qxf6 {[%clk
0:00:17.6]} 26... Nxf6 {[%clk 0:01:07.1]} 27. Rac1 {[%clk 0:00:19.4]} 27... Nd4
{[%clk 0:00:57.9]} 28. Nxd4 {[%clk 0:00:18.9]} 28... Rxd4 {[%clk 0:00:59.8]} 29.
Bf1 {[%clk 0:00:14.8]} 29... Rc7 {[%clk 0:00:34.2]} 30. Re5 {[%clk 0:00:15.5]}
30... Rd5 {[%clk 0:00:35.5]} 31. Rxd5 {[%clk 0:00:14.3]} 31... Nxd5 {[%clk
0:00:37.4]} 32. Bg2 {[%clk 0:00:10.9]} 32... Nb6 {[%clk 0:00:34.9]} 33. Re1
{[%clk 0:00:06.7]} 33... Kf7 {[%clk 0:00:34.3]} 34. Re5 {[%clk 0:00:07.3]} 34...
Kf6 {[%clk 0:00:34.7]} 35. Re8 {[%clk 0:00:08.5]} 35... Re7 {[%clk 0:00:27.7]}
36. Rf8+ {[%clk 0:00:09.9]} 36... Kg6 {[%clk 0:00:26.4]} 37. Bc6 {[%clk
0:00:08.9]} 37... Re6 {[%clk 0:00:21]} 38. Bb7 {[%clk 0:00:05.9]} 38... a5
{[%clk 0:00:18.8]} 39. Rb8 {[%clk 0:00:05.1]} 39... Rd6 {[%clk 0:00:19.7]} 40.
Kg2 {[%clk 0:00:04.8]} 40... b4 {[%clk 0:00:21.2]} 41. axb4 {[%clk 0:00:06.1]}
41... axb4 {[%clk 0:00:22]} 42. Ba6 {[%clk 0:00:07.4]} 42... Nd7 {[%clk
0:00:22.7]} 43. Rd8 {[%clk 0:00:07.6]} 43... Kf6 {[%clk 0:00:22.9]} 44. Bc4
{[%clk 0:00:05.3]} 44... Ke7 {[%clk 0:00:23.4]} 45. Rg8 {[%clk 0:00:06.6]} 45...
Kf6 {[%clk 0:00:20.9]} 46. Rd8 {[%clk 0:00:07.8]} 46... Rd4 {[%clk 0:00:21.3]}
47. h4 {[%clk 0:00:06.8]} 47... Ne5 {[%clk 0:00:22.3]} 48. Rf8+ {[%clk
0:00:07.2]} 48... Ke7 {[%clk 0:00:23.6]} 49. Rc8 {[%clk 0:00:08.4]} 49... Nd7
{[%clk 0:00:20.6]} 50. h5 {[%clk 0:00:06.4]} 50... f4 {[%clk 0:00:20.7]} 51. g4
{[%clk 0:00:06]} 51... Kd6 {[%clk 0:00:13.3]} 52. Rg8 {[%clk 0:00:06.9]} 52...
f3+ {[%clk 0:00:14.3]} 53. Kg3 {[%clk 0:00:05.3]} 53... Ne5 {[%clk 0:00:06.7]}
54. Rxg7 {[%clk 0:00:06.8]} 54... Nxc4 {[%clk 0:00:02.8]} 55. dxc4 {[%clk
0:00:08.7]} 55... Rd3 {[%clk 0:00:04.7]} 56. g5 {[%clk 0:00:09.3]} 56... Ke5
{[%clk 0:00:02.7]} 57. gxh6 {[%clk 0:00:10.1]} 57... Rd8 {[%clk 0:00:04.6]} 58.
h7 {[%clk 0:00:11.2]} 58... Rh8 {[%clk 0:00:05.9]} 59. Rd7 {[%clk 0:00:09.2]}
59... Ke6 {[%clk 0:00:06.3]} 60. Rc7 {[%clk 0:00:09.5]} 60... Kf6 {[%clk
0:00:07.1]} 61. Kxf3 {[%clk 0:00:10]} 61... Kg5 {[%clk 0:00:08.7]} 62. Rxc5+
{[%clk 0:00:10.3]} 62... Kh6 {[%clk 0:00:10.2]} 63. Rc7 {[%clk 0:00:11.7]} 63...
Kxh5 {[%clk 0:00:11]} 64. Rd7 {[%clk 0:00:11.1]} 64... Kg6 {[%clk 0:00:12.9]}
65. c5 {[%clk 0:00:11.7]} 65... Kf6 {[%clk 0:00:14.5]} 66. c6 {[%clk 0:00:12.9]}
66... Ke6 {[%clk 0:00:16.4]} 67. Ke4 {[%clk 0:00:13.9]} 67... Ra8 {[%clk
0:00:10.5]} 68. Rg7 {[%clk 0:00:13.6]} 68... Rh8 {[%clk 0:00:10.5]} 69. c7
{[%clk 0:00:14.9]} 69... Kd6 {[%clk 0:00:11.1]} 70. Rg8 {[%clk 0:00:12.9]} 70...
Rxh7 {[%clk 0:00:06.5]} 71. c8=Q {[%clk 0:00:13.9]} 71... Re7+ {[%clk
0:00:08.2]} 72. Kf3 {[%clk 0:00:13.8]} 72... Rf7+ {[%clk 0:00:09.1]} 73. Kg2
{[%clk 0:00:14.1]} 73... Ke5 {[%clk 0:00:10.1]} 74. Re8+ {[%clk 0:00:14.2]}
74... Kf6 {[%clk 0:00:11]} 75. Qe6+ {[%clk 0:00:15.3]} 75... Kg7 {[%clk
0:00:12.5]} 76. Re7 {[%clk 0:00:16.6]} 1-0

[Event "*** Titled Tuesday Blitz"]
[Site "Chess.com"]
[Date "2019.10.01"]
[Round "9"]
[White "bascheyaro"]
[Black "kosya4ok"]
[Result "0-1"]
[WhiteElo "2751"]
[BlackElo "2640"]
[TimeControl "180+2"]
[EndTime "15:14:56 PDT"]
[Termination "kosya4ok won by resignation"]

1. d4 {[%clk 0:03:00.8]} 1... Nf6 {[%clk 0:03:00.1]} 2. Nf3 {[%clk 0:03:02]}
2... e6 {[%clk 0:03:00.3]} 3. c4 {[%clk 0:03:02.2]} 3... b6 {[%clk 0:03:01.4]}
4. Nc3 {[%clk 0:03:02.9]} 4... Bb7 {[%clk 0:03:00.6]} 5. Bg5 {[%clk 0:03:03.8]}
5... Bb4 {[%clk 0:03:00.8]} 6. Qb3 {[%clk 0:03:02.2]} 6... a5 {[%clk 0:02:59.2]}
7. e3 {[%clk 0:03:01.1]} 7... h6 {[%clk 0:02:58.7]} 8. Bh4 {[%clk 0:03:01.7]}
8... g5 {[%clk 0:03:00]} 9. Bg3 {[%clk 0:03:02.7]} 9... Ne4 {[%clk 0:03:01.5]}
10. Bd3 {[%clk 0:03:03.5]} 10... d6 {[%clk 0:02:59.1]} 11. a3 {[%clk 0:02:42.5]}
11... Bxc3+ {[%clk 0:02:59.4]} 12. bxc3 {[%clk 0:02:43.9]} 12... Nd7 {[%clk
0:02:59.9]} 13. Qc2 {[%clk 0:02:36.4]} 13... f5 {[%clk 0:02:59.3]} 14. Rg1
{[%clk 0:02:20]} 14... Qf6 {[%clk 0:02:28.2]} 15. Nd2 {[%clk 0:02:19.1]} 15...
Nxd2 {[%clk 0:02:18.7]} 16. Qxd2 {[%clk 0:02:20.1]} 16... e5 {[%clk 0:02:18.9]}
17. f3 {[%clk 0:02:16.1]} 17... O-O-O {[%clk 0:02:12.4]} 18. O-O-O {[%clk
0:02:14.6]} 18... Rde8 {[%clk 0:02:08.7]} 19. Bf2 {[%clk 0:02:07.3]} 19... e4
{[%clk 0:02:05.7]} 20. fxe4 {[%clk 0:02:08.2]} 20... Bxe4 {[%clk 0:02:07.6]} 21.
Be2 {[%clk 0:02:08.6]} 21... Kb7 {[%clk 0:01:58.1]} 22. g4 {[%clk 0:02:09.3]}
22... Rhf8 {[%clk 0:01:44.5]} 23. Rdf1 {[%clk 0:01:55.7]} 23... Qe6 {[%clk
0:01:31.3]} 24. h4 {[%clk 0:01:48.5]} 24... fxg4 {[%clk 0:01:22.8]} 25. hxg5
{[%clk 0:01:48.2]} 25... h5 {[%clk 0:01:18.9]} 26. Bh4 {[%clk 0:01:45.3]} 26...
Rf5 {[%clk 0:01:10.1]} 27. Rf4 {[%clk 0:01:39.6]} 27... Nf8 {[%clk 0:00:41.2]}
28. d5 {[%clk 0:01:21.5]} 28... Qe5 {[%clk 0:00:21.6]} 29. Rxe4 {[%clk
0:01:21.7]} 29... Qxe4 {[%clk 0:00:23.5]} 30. Bd3 {[%clk 0:01:21.2]} 30... Qf3
{[%clk 0:00:22.9]} 31. Rf1 {[%clk 0:01:12.8]} 31... Qxf1+ {[%clk 0:00:23.4]} 32.
Bxf1 {[%clk 0:01:14.7]} 32... Rxf1+ {[%clk 0:00:25.3]} 33. Kc2 {[%clk
0:01:15.9]} 33... Ng6 {[%clk 0:00:26.5]} 34. Qd3 {[%clk 0:01:17.3]} 34... Nxh4
{[%clk 0:00:19.7]} 35. Qxf1 {[%clk 0:01:17.4]} 35... Nf3 {[%clk 0:00:21.3]} 36.
g6 {[%clk 0:01:11.8]} 36... Rg8 {[%clk 0:00:21.5]} 37. Qd3 {[%clk 0:01:09.8]}
37... Ne5 {[%clk 0:00:22.7]} 38. Qf5 {[%clk 0:01:10.8]} 38... Rxg6 {[%clk
0:00:24.2]} 39. c5 {[%clk 0:01:10.2]} 39... bxc5 {[%clk 0:00:22.8]} 40. Qf8
{[%clk 0:01:05.3]} 40... g3 {[%clk 0:00:22.6]} 41. Qe8 {[%clk 0:01:05.7]} 41...
Ka7 {[%clk 0:00:11.5]} 42. Qc8 {[%clk 0:00:57.2]} 42... Rg7 {[%clk 0:00:11.5]}
43. Qf8 {[%clk 0:00:58.3]} 43... Rf7 {[%clk 0:00:11.5]} 44. Qg8 {[%clk
0:00:59.5]} 44... h4 {[%clk 0:00:12.8]} 45. Kb3 {[%clk 0:01:00.1]} 45... Kb7
{[%clk 0:00:11.6]} 46. Ka4 {[%clk 0:01:01]} 46... Re7 {[%clk 0:00:08.6]} 47. Kb5
{[%clk 0:00:56.9]} 47... Nd7 {[%clk 0:00:07.9]} 48. Qg4 {[%clk 0:00:51.6]} 48...
Rh7 {[%clk 0:00:06.8]} 49. Qg6 {[%clk 0:00:42.2]} 49... Re7 {[%clk 0:00:07.7]}
50. Kxa5 {[%clk 0:00:40.3]} 50... Nb6 {[%clk 0:00:05.6]} 51. Qg5 {[%clk
0:00:39.5]} 51... Re4 {[%clk 0:00:06]} 52. Kb5 {[%clk 0:00:39.2]} 52... Ra4
{[%clk 0:00:05.6]} 53. Qg8 {[%clk 0:00:32.2]} 53... Rxa3 {[%clk 0:00:06.7]} 54.
Qg4 {[%clk 0:00:25.6]} 54... Rb3+ {[%clk 0:00:07.9]} 55. Ka5 {[%clk 0:00:27]}
55... Rxc3 {[%clk 0:00:08.9]} 56. Qxh4 {[%clk 0:00:27.4]} 56... g2 {[%clk
0:00:10.4]} 57. Qg5 {[%clk 0:00:25.1]} 57... Rc2 {[%clk 0:00:10.9]} 58. e4
{[%clk 0:00:22.6]} 58... Rb2 {[%clk 0:00:12]} 59. Qc1 {[%clk 0:00:18.4]} 59...
g1=Q {[%clk 0:00:12]} 60. Qxb2 {[%clk 0:00:17.4]} 60... Qe1+ {[%clk 0:00:13.4]}
61. Kb5 {[%clk 0:00:18]} 61... Qb4+ {[%clk 0:00:14.2]} 62. Qxb4 {[%clk
0:00:19.4]} 62... cxb4 {[%clk 0:00:16.1]} 63. Kxb4 {[%clk 0:00:21.3]} 63... Nd7
{[%clk 0:00:17.6]} 64. Kb5 {[%clk 0:00:21.4]} 64... Ne5 {[%clk 0:00:19.5]} 65.
Ka5 {[%clk 0:00:22.4]} 65... c5 {[%clk 0:00:19.6]} 66. dxc6+ {[%clk 0:00:23.1]}
66... Kxc6 {[%clk 0:00:21.5]} 67. Kb4 {[%clk 0:00:25]} 67... Kb6 {[%clk
0:00:23.1]} 68. Kb3 {[%clk 0:00:24.9]} 68... Kc5 {[%clk 0:00:25]} 69. Kc3 {[%clk
0:00:26.2]} 69... Kc6 {[%clk 0:00:24.6]} 70. Kd4 {[%clk 0:00:27.3]} 70... Kd7
{[%clk 0:00:25.8]} 71. Ke3 {[%clk 0:00:28.7]} 71... Ke6 {[%clk 0:00:27]} 72. Kf4
{[%clk 0:00:29.1]} 72... Nd7 {[%clk 0:00:28.5]} 73. Ke3 {[%clk 0:00:30.6]} 73...
Nc5 {[%clk 0:00:29.9]} 0-1